Cogmind - Beta 16 @@@ ROGUE MODE // 2025.12.18 @ 17:08:23 Player: BlobtheGreat Result: Destroyed by H-55 Commando with Assault Rifle Performance ------------- Evolutions (2) 1000 Regions Visited (8) 1600 Robots Destroyed (166) 830 Value Destroyed (4693) 4693 Prototype IDs (7) 140 Alien Tech Used (0) 0 Bonus (1293) 1293 TOTAL SCORE: 9556 Bonus ------- High Alert Combat Kills 112 Follower Combat Kills 281 Entered Garrisons 400 Used RIF Installer 500 Cogmind --------- Core Integrity 0/550 Matter 269/300 Energy 279/290 System Corruption 8% Temperature Warm (110) Movement Treading (272) Ox2 Location -8/Garrison Parts ------- > --- POWER (1) -------- Improved Deuterium Engine > --- PROPULSION (4) --- Light Treads Advanced Treads > --- UTILITY (4) ------ Heat Sink Huge Storage Unit Relay Coupler [Sentry] (18) > --- WEAPON (2) ------- Advanced Beam Cannon Advanced Beam Cannon > --- INVENTORY (25) --- Improved Deuterium Engine Large Storage Unit High-capacity Storage Unit Seismic Detector Relay Coupler [Grunt] (31) Relay Coupler [Sentry] (23) Relay Coupler [Sentry] (19) Drone Bay (2/2) Small Laser Plasma Cannon Improved Assault Rifle Improved Assault Rifle Improved Light Cannon Improved Light Cannon Rocket Launcher Mini Grenade Launcher Mini Grenade Launcher Improved Grenade Launcher Hammer EM Surge Trap EM Surge Trap Stasis Trap (100%) Stasis Trap (100%) Stasis Trap (100%) Stasis Trap (100%) Peak State ------------ > --- POWER ------------ Light Nuclear Core > --- PROPULSION ------- Carbon-fiber Leg Carbon-fiber Leg Carbon-fiber Leg Carbon-fiber Leg > --- UTILITY ---------- Huge Storage Unit Relay Coupler [Grunt] Relay Coupler [Sentry] Relay Coupler [Hunter] > --- WEAPON ----------- Improved Assault Rifle Improved Assault Rifle > --- INVENTORY -------- Light Treads Large Storage Unit High-capacity Storage Unit Seismic Detector Relay Coupler [Grunt] Relay Coupler [Sentry] Relay Coupler [Sentry] Drone Bay Small Laser Advanced Beam Cannon Advanced Beam Cannon Improved Assault Rifle Improved Light Cannon Improved Light Cannon Rocket Launcher Mini Grenade Launcher Mini Grenade Launcher Hammer EM Surge Trap EM Surge Trap Stasis Trap Stasis Trap Stasis Trap Stasis Trap [Rating: 38] Favorites ----------- Power Light Nuclear Core Engine Heavy Ion Engine Power Core Light Nuclear Core Propulsion Light Treads Treads Light Treads Leg Carbon-fiber Leg Flight Unit Improved Flight Unit Utility Huge Storage Unit Device Improved Heat Sink Storage Huge Storage Unit Hackware Hacking Suite Protection Light Armor Plating Weapon Improved Assault Rifle Energy Gun Small Laser Energy Cannon Advanced Beam Cannon Ballistic Gun Improved Assault Rifle Ballistic Cannon Light Cannon Launcher Rocket Launcher Impact Weapon Hammer Build | -11 -10 -10 -9 -9 -8 -8 -8 -8 ------- Run | Yrd Mat Min Mat Sto Mat Gar Mat Gar Slots Evolved 4 | . . . 2 . 2 . . . Power . | . . . . . . . . . Propulsion 2 | . . . 1 . 1 . . . Utility 2 | . . . 1 . 1 . . . Weapon . | . . . . . . . . . Parts Attached 84 | 9 5 6 19 21 . 12 10 2 Power 8 | 2 1 . 1 1 . 1 2 . Engine 6 | 2 . . 1 1 . . 2 . Core 2 | . 1 . . . . 1 . . Reactor . | . . . . . . . . . Propulsion 33 | 2 . 4 8 11 . 4 4 . Treads 25 | 2 . 3 6 10 . . 4 . Leg 7 | . . 1 2 . . 4 . . Wheel . | . . . . . . . . . Hover . | . . . . . . . . . Flight 1 | . . . . 1 . . . . Utility 23 | 3 2 . 6 6 . 3 2 1 Device 5 | 1 . . 2 . . . 1 1 Storage 5 | 2 2 . 1 . . . . . Processor . | . . . . . . . . . Hackware 4 | . . . . 1 . 3 . . Protection 9 | . . . 3 5 . . 1 . Artifact . | . . . . . . . . . Weapon 20 | 2 2 2 4 3 . 4 2 1 Energy Gun 4 | 1 . 1 1 1 . . . . Energy Cannon 4 | . . . 1 1 . . 2 . Ballistic Gun 5 | 1 . 1 1 . . 2 . . Ballistic Cannon 2 | . 2 . . . . . . . Launcher 4 | . . . 1 1 . 1 . 1 Special Weapon . | . . . . . . . . . Impact Weapon 1 | . . . . . . 1 . . Slashing Weapon . | . . . . . . . . . Piercing Weapon . | . . . . . . . . . Special Melee Weapon . | . . . . . . . . . Unidentified Prototypes 3 | . . . . 3 . . . . Parts Lost 31 | . 2 4 5 2 . 8 6 4 Power 4 | . . . 1 . . 2 1 . Propulsion 13 | . 1 2 2 . . 2 4 2 Utility 8 | . . . 2 1 . 3 . 2 Weapon 6 | . 1 2 . 1 . 1 1 . Highest Loss Streak 4 | . 1 2 2 1 . 3 4 2 To Critical Strikes . | . . . . . . . . . Average Backups 14 | 5 9 8 16 21 21 18 17 19 Power . | . 1 1 . 1 1 . . 1 Propulsion 3 | 3 5 3 4 5 4 2 . . Utility 3 | . 1 3 3 4 5 5 7 7 Weapon 6 | . 1 . 7 10 11 10 9 11 Tool/Special . | . . . . . . . . . Unused Backups 15 | . 2 . 2 2 . . . 9 Power 1 | . . . . . . . . 1 Propulsion 5 | . 2 . 1 2 . . . . Utility 5 | . . . . . . . . 5 Weapon 4 | . . . 1 . . . . 3 Tool/Special . | . . . . . . . . . Average Slot Usage (%) 87 | . 91 79 85 97 81 82 83 93 Engine 6 | . 7 . 5 11 9 6 2 9 Core 2 | . 6 14 . . . . 1 . Treads 25 | . 28 27 29 32 27 11 17 34 Leg 4 | . . . 1 . . 20 8 . Device 2 | . . . 7 . . . 4 11 Storage 11 | . 19 14 11 11 9 9 9 9 Hackware 5 | . . . . 8 9 9 13 9 Protection 6 | . . . 8 10 9 7 8 2 Energy Gun 2 | . 3 11 2 . . . . . Energy Cannon 6 | . . . 8 10 9 . 13 17 Ballistic Gun 9 | . 14 2 11 10 9 13 2 . Ballistic Cannon 2 | . 10 8 . . . . . . Peak Build Rating 38 | 7 10 9 22 23 23 38 38 30 Average Rating 17 | 5 8 8 15 21 23 24 27 28 On Entrance 17 | . 6 8 9 20 23 23 38 30 Avg Prop Armor Cover (%) 18 | 23 . . 6 . . . . 8 Naked Turns . | . . . . . . . . . Heaviest Build 107 | 15 39 29 102 100 98 98 107 107 Greatest Support 82 | 40 40 40 60 63 63 63 82 82 Greatest Overweight (x) 8 | 4 1 2 8 2 1 2 6 2 Average Overweight (x) . | 1 . . 1 1 1 1 1 1 Largest Inventory Capacity 25 | 8 15 15 25 25 25 25 25 25 Average Capacity 20 | 7 12 15 24 25 25 25 25 25 Most Carried 25 | 7 12 12 25 25 25 25 25 25 Average Carried 18 | 5 9 8 20 24 25 23 23 25 Final Capacity 25 | 8 15 15 25 25 25 25 25 25 Final Carried 25 | 7 11 12 25 25 25 24 25 25 Class Distribution -------------------- 57% | Mutant 31% | Scavenger-Mutant 10% | Commander-Mutant Dominant Class ---------------- Mutant | -10/Materials Mutant | -10/Mines Scavenger-Mutant | -9/Materials Commander-Mutant | -9/Storage Commander-Mutant | -8/Materials Mutant | -8/Garrison Mutant | -8/Materials Scavenger-Mutant | -8/Garrison Resources | -11 -10 -10 -9 -9 -8 -8 -8 -8 ----------- Run | Yrd Mat Min Mat Sto Mat Gar Mat Gar Matter Collected 2585 | 295 304 147 445 511 . 453 405 25 Remotely . | . . . . . . . . . Salvage Created 5251 | 146 751 139 1351 1006 . 647 749 462 Parts 327 | 16 54 13 89 61 . 31 41 22 Haulers Intercepted 11 | . 2 . 5 2 . . 2 . Recyclers Shooed 1 | . . . . . . . 1 . Parts Field Recycled . | . . . . . . . . . Retrieved Matter . | . . . . . . . . . Parts Self-Destructed . | . . . . . . . . . Prevented . | . . . . . . . . . Parts Restored . | . . . . . . . . . Kills | -11 -10 -10 -9 -9 -8 -8 -8 -8 ------- Run | Yrd Mat Min Mat Sto Mat Gar Mat Gar Combat Hostiles Destroyed 122 | 1 15 11 31 16 . 20 12 16 Melee 1 | . . . . . . . 1 . Guns 44 | 1 7 7 13 4 . 12 . . Cannons 54 | . 8 4 10 12 . . 9 11 AOE 21 | . . . 8 . . 8 1 4 Classes Destroyed 16 | 3 6 1 1 . . . 3 2 Worker 7 | . . 1 2 2 . . 2 . Builder 4 | . 2 . 2 . . . . . Tunneler 4 | 4 . . . . . . . . Hauler 11 | . 2 . 5 2 . . 2 . Recycler 9 | 1 1 . 2 3 . . 2 . Mechanic 2 | . 1 . . . . . 1 . Operator 1 | . . . . . . . 1 . Watcher 6 | . 2 . 3 . . . 1 . Swarmer 55 | . 3 9 17 5 . 7 5 9 Grunt 38 | . 12 . 8 3 . 11 2 2 Sentry 18 | . . . 6 8 . 2 2 . Demolisher 3 | 1 . 2 . . . . . . Specialist 2 | . . . . . . . 2 . Hunter 1 | . . . . . . . 1 . Programmer 4 | . . . . . . . . 4 Savage 1 | . . . . . . . . 1 Best Kill Streak 10 | 2 4 3 7 4 . 4 4 10 Combat Bots Only 10 | 1 3 3 5 3 . 4 3 10 Max Kills in Single Turn 4 | 1 2 1 4 2 . 2 2 3 Gunslinging 1 | . . . . . . 1 . . Exploded 4 | . . . 4 . . 2 1 3 Melee 1 | . . . . . . . 1 . Uniques/NPCs Destroyed . | . . . . . . . . . Combat | -11 -10 -10 -9 -9 -8 -8 -8 -8 -------- Run | Yrd Mat Min Mat Sto Mat Gar Mat Gar Hostile Shots Fired 683 | 2 61 70 128 81 . 160 105 76 Missed 189 | . 19 13 38 26 . 37 33 23 Hits 494 | 2 42 57 90 55 . 123 72 53 Melee 2 | . . . . 2 . . . . Projectile 492 | 2 42 57 90 53 . 123 72 53 AOE 8 | 2 . 5 . . . 1 . . Critical Strikes 5 | . . . 2 1 . 2 . . Part Disruptions 1 | . . . . . . . . 1 Damage Taken 6042 | 51 528 633 1034 763 . 1493 793 747 Core 1022 | 17 65 144 121 119 . 216 221 119 Absorbed by Shields 466 | . . . . . . 466 . . Core Remaining (%) 47 | 93 . 9 . 40 . . . . Volleys Fired 399 | 15 63 34 78 61 . 72 36 40 Largest 2 | 2 2 2 2 2 . 2 2 2 Hottest 136 | 60 60 70 91 91 . 91 136 136 Shots Fired 749 | 29 126 59 138 121 . 130 68 78 Gun 416 | 29 77 33 100 60 . 111 6 . Cannon 311 | . 49 26 34 61 . 7 58 76 Launcher 22 | . . . 4 . . 12 4 2 Special . | . . . . . . . . . Kinetic 425 | 15 112 47 74 60 . 111 6 . Thermal 282 | 14 14 12 40 61 . 7 58 76 Explosive 22 | . . . 4 . . 12 4 2 Electromagnetic 20 | . . . 20 . . . . . Robot Hit Streak 34 | 6 13 8 12 9 . 34 9 12 Robot Miss Streak 6 | 2 4 6 6 3 . 2 4 4 Penetration Max . | . . . . . . . . . Secondary Targets 6 | . . . 4 . . 2 . . Max Gunslinging Chain 1 | . . . 1 . . 1 . . Shots Hit Robots 469 | 16 80 31 91 63 . 105 43 40 Core Hits 233 | 10 40 16 58 28 . 37 24 20 Critical Kills 4 | . . . 2 . . . 1 1 Critical Parts Destroyed 5 | . . . . 1 . 1 3 . Critical Strikes 10 | . 1 . 2 1 . 1 4 1 Meltdown 3 | . . . 1 . . . 1 1 Destroy 3 | . . . 1 1 . 1 . . Blast 1 | . 1 . . . . . . . Smash 3 | . . . . . . . 3 . Melee Attacks 45 | . . . . . . 28 7 10 Impact 45 | . . . . . . 28 7 10 Slashing . | . . . . . . . . . Piercing . | . . . . . . . . . Sneak Attacks 1 | . . . . . . . 1 . Combat Hostiles . | . . . . . . . . . Follow-up Attacks . | . . . . . . . . . Damage Inflicted 10315 | 172 1009 433 2344 1369 . 2421 1285 1282 Guns 3711 | 167 501 191 809 579 . 1422 42 . Cannons 3936 | . 500 205 646 773 . 84 744 984 Explosions 2347 | . . . 846 . . 852 351 298 Melee 191 | . . . . . . 61 130 . Ramming 130 | 5 8 37 43 17 . 2 18 . Kinetic 3728 | 65 857 302 461 579 . 1422 42 . Thermal 3856 | 102 144 94 931 773 . 84 744 984 Explosive 2073 | . . . 572 . . 852 351 298 Electromagnetic 337 | . . . 337 . . . . . Impact 191 | . . . . . . 61 130 . Slashing . | . . . . . . . . . Piercing . | . . . . . . . . . Highest Corruption 8 | . . . 2 4 . . . 8 Average Corruption 2 | . . . 2 3 . . . 3 Corruption Purged . | . . . . . . . . . Corruption Blocked . | . . . . . . . . . Effects 51 | . . . 14 30 . . . 7 Message Errors 8 | . . . 1 6 . . . 1 Matter Fused 13 | . . . 3 10 . . . . Heat Flow Errors 8 | . . . 1 7 . . . . Energy Discharges 9 | . . . 4 3 . . . 2 Parts Fused 1 | . . . 1 . . . . . Data Loss (minor) 5 | . . . 3 2 . . . . Data Loss (major) 2 | . . . 1 1 . . . . Misfires 4 | . . . . . . . . 4 Weapon Failures 1 | . . . . 1 . . . . Overload Shots . | . . . . . . . . . Overflow Damage 267 | . 13 15 . 5 . 113 97 24 Projectiles 50 | . 13 15 . 5 . . 3 14 Explosions 90 | . . . . . . 76 4 10 Melee 127 | . . . . . . 37 90 . Knockbacks 10 | . 7 2 . . . . 1 . Impact 1 | . . . . . . . 1 . Kinetic 9 | . 7 2 . . . . . . Secondary . | . . . . . . . . . Self-Inflicted Damage 99 | . . . 65 . . 34 . . Shots 3 | . . . 1 . . 2 . . Rammed 16 | 1 1 5 4 3 . 1 1 . Targets Rammed 22 | 1 2 6 6 3 . 1 3 . Kicked 2 | . . . . . . . 2 . Crushed 4 | . 1 1 2 . . . . . Highest Temperature 264 | 40 65 34 232 257 . 139 264 237 Average Temperature 57 | 19 24 14 33 85 . 47 78 79 Received Heat Transfer 1447 | . 237 . 288 207 . 589 54 72 Siege Activations . | . . . . . . . . . Martial Activations . | . . . . . . . . . Shielding Activations . | . . . . . . . . . Robots Disrupted . | . . . . . . . . . Combat Hostiles . | . . . . . . . . . Robots Corrupted 4 | . . . . . . 1 3 . Combat Hostiles 1 | . . . . . . . 1 . Parts Fried 4 | . . . . . . 1 3 . Impact Corruptions 7 | . . . . . . 2 5 . Robots Melted 3 | . . . 1 . . . 1 1 Combat Hostiles 1 | . . . . . . . . 1 Parts Melted 8 | . . 1 . . . . 3 4 Heat Transferred 6357 | 225 325 200 1335 1295 . 128 1295 1554 Parts Sabotaged . | . . . . . . . . . Parts Stolen . | . . . . . . . . . Parts Stripped . | . . . . . . . . . Power Chain Reactions . | . . . . . . . . . Alert | -11 -10 -10 -9 -9 -8 -8 -8 -8 ------- Run | Yrd Mat Min Mat Sto Mat Gar Mat Gar Maximum Alert Level 3 | . 1 . 2 2 1 3 1 1 Low Security (%) 66 | 100 95 100 60 23 48 35 75 82 Level 1 20 | . 4 . 25 35 51 37 24 17 Level 2 11 | . . . 14 40 . 14 . . Level 3 1 | . . . . . . 11 . . Level 4 . | . . . . . . . . . Level 5 . | . . . . . . . . . High Security . | . . . . . . . . . Max Security . | . . . . . . . . . Peak Influence 776 | 20 239 70 422 549 216 776 378 374 Initial 378 | . . . 22 172 216 122 378 . Average 166 | 1 49 12 194 311 203 323 136 129 Influence Increases 4466 | 45 503 295 1035 923 3 834 404 424 Destroy 0b10 Robot/C 2640 | 20 300 220 620 500 . 420 240 320 Destroy 0b10 Robot/NC 245 | 25 40 5 70 45 . 15 45 . Destroy Leader 558 | . 68 40 166 168 . 20 76 20 Allied During Kill 173 | . . . . 158 . 9 . 6 Successful Hack 69 | . 18 . 26 2 3 12 8 . Select Force Hacks 60 | . 60 . . . . . . . Disable Machine 165 | . . 15 90 45 . 15 . . Anti-Garrison Action 300 | . . . . . . 250 . 50 Destroy Structure 196 | . 2 . 63 5 . 93 20 13 Lose Combat Pursuer 60 | . 15 15 . . . . 15 15 Influence Decreases 4102 | 45 503 237 684 819 327 247 1180 60 Entered New Map 1035 | . . . 36 237 297 67 398 . Time Decay 2086 | 45 272 207 598 522 30 . 412 . Lost Part 290 | . 10 30 50 20 . 80 60 40 Lost Ally 170 | . . . . 40 . 100 10 20 Purge Threat 521 | . 221 . . . . . 300 . Squads Dispatched 9 | . 3 . 3 2 . . 1 . Investigation 4 | . 2 . 2 . . . . . Extermination . | . . . . . . . . . Reinforcement 4 | . 1 . 1 1 . . 1 . Assault 1 | . . . . 1 . . . . Garrison . | . . . . . . . . . Intercept . | . . . . . . . . . Searches Triggered . | . . . . . . . . . Construction Impeded . | . . . . . . . . . Haulers Reinforced . | . . . . . . . . . Active Scanning Responses . | . . . . . . . . . Cargo Convoy Interrupts . | . . . . . . . . . Stealth | -11 -10 -10 -9 -9 -8 -8 -8 -8 --------- Run | Yrd Mat Min Mat Sto Mat Gar Mat Gar Distress Signals 12 | . 3 . 2 3 . . 4 . Communications Jammed . | . . . . . . . . . Distress Signals . | . . . . . . . . . Times Spotted 177 | 1 24 12 41 30 . 22 33 14 Peak Tracking Total 6 | 1 5 3 5 4 . 5 6 4 Tactical Retreats 4 | . 1 1 . . . . 1 1 Traps | -11 -10 -10 -9 -9 -8 -8 -8 -8 ------- Run | Yrd Mat Min Mat Sto Mat Gar Mat Gar Traps Triggered 14 | . 1 . 3 3 . 7 . . Indirectly . | . . . . . . . . . Trap Hack Attempts . | . . . . . . . . . Triggered . | . . . . . . . . . Disarmed . | . . . . . . . . . Reprogrammed . | . . . . . . . . . Reused . | . . . . . . . . . Traps Extracted . | . . . . . . . . . Installed . | . . . . . . . . . Triggered . | . . . . . . . . . Most Traps Carried 6 | . . 4 4 4 4 6 6 6 Machines | -11 -10 -10 -9 -9 -8 -8 -8 -8 ---------- Run | Yrd Mat Min Mat Sto Mat Gar Mat Gar Machines Disabled 16 | . . 1 6 3 . 4 . 2 Max in Single Turn 2 | . . 1 2 1 . 1 . 1 Garrison Access 1 | . . . . 1 . . . . Garrison Relay 4 | . . . . . . 3 . 1 Machines Repaired . | . . . . . . . . . Machines Dismantled . | . . . . . . . . . Machines Sabotaged . | . . . . . . . . . Overloaded Fab Kills . | . . . . . . . . . Hacking | -11 -10 -10 -9 -9 -8 -8 -8 -8 --------- Run | Yrd Mat Min Mat Sto Mat Gar Mat Gar Machines Accessed 36 | . 8 . 9 8 2 1 6 2 Terminals 29 | . 6 . 8 7 1 1 4 2 Fabricators . | . . . . . . . . . Repair Stations . | . . . . . . . . . Recycling Units 2 | . 2 . . . . . . . Scanalyzers 2 | . . . 1 . . . 1 . Garrison Access 3 | . . . . 1 1 . 1 . Total Hacks 83 | . 22 . 19 16 3 2 17 4 Successful 45 | . 9 . 12 10 3 1 9 1 Failed 37 | . 13 . 7 6 . 1 7 3 Catastrophic 3 | . 1 . . 1 . . 1 . Database Lockouts 1 | . . . . . . . 1 . Manual 51 | . 14 . 15 11 2 . 9 . Terminals 71 | . 19 . 17 15 2 2 12 4 Fabricators . | . . . . . . . . . Repair Stations . | . . . . . . . . . Recycling Units 3 | . 3 . . . . . . . Scanalyzers 6 | . . . 2 . . . 4 . Garrison Access 3 | . . . . 1 1 . 1 . Terminal Hacks 19 | . 7 . 3 3 . 1 4 1 Part Schematic 1 | . . . . 1 . . . . Robot Analysis 4 | . 2 . 2 . . . . . Prototype ID Bank 2 | . 2 . . . . . . . Open Door 2 | . . . . 1 . . . 1 Branch Access Points 1 | . . . 1 . . . . . Emergency Access Points 1 | . . . . . . 1 . . Unreport Threat 4 | . 2 . . . . . 2 . Locate Traps 1 | . . . . . . . 1 . Transport Status 1 | . . . . . . . 1 . Hauler Manifests 1 | . . . . 1 . . . . Zone Layout 1 | . 1 . . . . . . . Fabricator Hacks . | . . . . . . . . . Repair Station Hacks . | . . . . . . . . . Recycling Unit Hacks . | . . . . . . . . . Scanalyzer 4 | . . . 1 . . . 3 . Retrieve Study 4 | . . . 1 . . . 3 . Garrison Access Hacks 3 | . . . . 1 1 . 1 . Unlock Access 2 | . . . . . 1 . 1 . Seal Access 1 | . . . . 1 . . . . Unauthorized Hacks 19 | . 2 . 8 6 2 . 1 . Terminals 17 | . . . 8 6 2 . 1 . Assimilate 1 | . . . . . . . 1 . Botnet 4 | . . . 2 1 1 . . . Skim 12 | . . . 6 5 1 . . . Fabricators . | . . . . . . . . . Repair Stations . | . . . . . . . . . Recycling Units 2 | . 2 . . . . . . . Tunnel 2 | . 2 . . . . . . . Scanalyzers . | . . . . . . . . . Garrison Access . | . . . . . . . . . Data Cores Recovered 1 | . . . . . . . 1 . Used . | . . . . . . . . . Hacking Detections 26 | . 6 . 8 4 1 1 4 2 Full Trace Events . | . . . . . . . . . Feedback Events . | . . . . . . . . . Feedback Blocked . | . . . . . . . . . Robot Schematics Acquired . | . . . . . . . . . Robots Built . | . . . . . . . . . Authchips . | . . . . . . . . . Time . | . . . . . . . . . Total Robot Build Rating . | . . . . . . . . . Part Schematics Acquired 1 | . . . . 1 . . . . Parts Built . | . . . . . . . . . Authchips . | . . . . . . . . . Time . | . . . . . . . . . Total Part Build Rating . | . . . . . . . . . Part Studies Acquired 4 | . . . 1 . . . 3 . Parts Repaired . | . . . . . . . . . Time . | . . . . . . . . . Parts Recycled . | . . . . . . . . . Recycled Matter . | . . . . . . . . . Retrieved Matter . | . . . . . . . . . Retrieved Components . | . . . . . . . . . Parts Scanalyzed . | . . . . . . . . . Part Schematics Acquired . | . . . . . . . . . Parts Damaged . | . . . . . . . . . Bothacking | -11 -10 -10 -9 -9 -8 -8 -8 -8 ------------ Run | Yrd Mat Min Mat Sto Mat Gar Mat Gar Used RIF Installer 1 | . . . . . . 1 . . Robots Hacked . | . . . . . . . . . Non-combat . | . . . . . . . . . Combat . | . . . . . . . . . Robot Hacks Applied . | . . . . . . . . . Relay Couplers Released 18 | . . . . . . 10 . 8 Machine Destruction 15 | . . . . . . 10 . 5 Programmers 3 | . . . . . . . . 3 Attached 3 | . . . . . . 3 . . Fabnet Peak Effective % . | . . . . . . . . . Robots Rewired 2 | . . . . . . . . 2 Allies Hacked . | . . . . . . . . . Hacks Repelled . | . . . . . . . . . Allies | -11 -10 -10 -9 -9 -8 -8 -8 -8 -------- Run | Yrd Mat Min Mat Sto Mat Gar Mat Gar Total Allies 13 | . . . . 10 . . 1 2 Largest Group 10 | . . . . 10 8 8 1 2 Highest-Rated Group 88 | . . . . 88 72 72 10 51 Highest-Rated Ally 31 | . . . . 16 16 16 10 31 Total Orders . | . . . . . . . . . Ally Attacks 82 | . . . . 61 . 11 . 10 Total Damage 781 | . . . . 539 . 120 . 122 Kills 13 | . . . . 11 . 2 . . Allies Corrupted . | . . . . . . . . . Allies Melted . | . . . . . . . . . Intel | -11 -10 -10 -9 -9 -8 -8 -8 -8 ------- Run | Yrd Mat Min Mat Sto Mat Gar Mat Gar Active Infowar (turns) 6 | 6 . . . . . . . . Seismic 6 | 6 . . . . . . . . Robot Analysis Total 4 | . 2 . 2 . . . . . Derelict Logs Recovered 1 | . . 1 . . . . . . Drone Launches . | . . . . . . . . . Drone Recoveries . | . . . . . . . . . Exploration | -11 -10 -10 -9 -9 -8 -8 -8 -8 ------------- Run | Yrd Mat Min Mat Sto Mat Gar Mat Gar Turns Passed 9758 | 910 1278 1007 2071 1453 78 1452 1020 489 Spaces Moved 4058 | 431 611 539 760 595 33 554 379 156 Core 180 | 180 . . . . . . . . Treads 3408 | 251 611 538 737 595 33 223 264 156 Legs 470 | . . 1 23 . . 331 115 . Wheels . | . . . . . . . . . Hover . | . . . . . . . . . Flight . | . . . . . . . . . Fastest Speed 50 | 50 160 160 160 200 213 190 175 206 Average Speed 195 | 179 160 160 231 204 213 199 220 208 Slowest Speed 680 | 250 240 260 680 240 213 260 525 272 Overloaded Moves . | . . . . . . . . . Propulsion Burnouts . | . . . . . . . . . Robots Hopped . | . . . . . . . . . Potential Cave-ins . | . . . . . . . . . Cave-ins Triggered . | . . . . . . . . . Exploration Rate (%) 60 | 31 94 97 84 91 5 67 52 22 Regions Visited 8 Branch Regions 2 Pre-discovered Areas 6 | . 2 . 1 3 . . . . Known Exits Taken 4 | . . . 1 1 1 . 1 . Unknown Exits Taken 3 | 1 1 1 . . . . . . Scrap Searched 1 | . . 1 . . . . . . Spaces Dug 7 | . . . 5 . . 2 . . Terrain Destroyed 151 | . . . 63 . . 51 34 3 Melee 2 | . . . . . . 2 . . Projectile . | . . . . . . . . . AOE 149 | . . . 63 . . 49 34 3 Terrain Rammed . | . . . . . . . . . Walls Destroyed . | . . . . . . . . . Machines Disabled . | . . . . . . . . . Actions | -11 -10 -10 -9 -9 -8 -8 -8 -8 --------- Run | Yrd Mat Min Mat Sto Mat Gar Mat Gar Total 5064 | 540 799 623 934 712 41 711 477 227 Wait 295 | 75 107 34 30 4 9 4 28 4 Move 4051 | 430 610 538 759 594 32 553 379 156 Hop . | . . . . . . . . . Pick Up 42 | 6 6 5 16 2 . 5 2 . Fast Attach 49 | 8 3 1 13 12 . 4 7 1 Attach 20 | 1 1 4 4 . . 6 4 . Detach 18 | 3 1 . 9 . . . 5 . Swap 49 | . 1 1 8 15 . 16 4 4 Drop 40 | 1 5 . 11 21 . . 2 . Fire 399 | 15 63 34 78 61 . 72 36 40 Melee 45 | . . . . . . 28 7 10 Ram . | . . . . . . . . . Kick 2 | . . . . . . . 2 . Crush 20 | 1 2 6 6 3 . 1 1 . Escape Stasis 22 | . . . . . . 22 . . Rewire 12 | . . . . . . . . 12 Trap . | . . . . . . . . . Miscellaneous . | . . . . . . . . . Route ------- -11/Scrapyard -10/Materials (discovered 4 exits: *Mat x3 / [*Min]) -10/Mines (discovered 2 exits: *Mat x2) -9/Materials (discovered 5 exits: *Mat x3 / *Min / *Sto) -9/Storage (discovered 2 exits: *Mat / Rec) -8/Materials (discovered 3 exits: Fac x2 / Gar) -8/Garrison (discovered 2 exits: *Mat x2) -8/Materials (discovered 3 exits: *Fac x2 / Gar) -8/Garrison History --------- Turn | Location | Event 8 | -11/Scrapyard | Discovered new exit (range 16) 510 | -11/Scrapyard | Assembled infested the area 911 | -11/Scrapyard | Entered Materials 917 | -10/Materials | Build established: Mutant 1019 | -10/Materials | Discovered new exit (range 12) 1179 | -10/Materials | Discovered new exit (range 12) 1279 | -10/Materials | Discovered new exit (range 16) 1860 | -10/Materials | Discovered new exit (range 13) 1911 | -10/Materials | Derelicts attacked the area 2189 | -10/Materials | Entered Mines 2355 | -10/Mines | Core integrity fell below 50% 2401 | -10/Mines | Learned Materials emergency access door positions 2430 | -10/Mines | Discovered new exit (range 15) 2626 | -10/Mines | Assembled infested the area 2768 | -10/Mines | Core integrity fell below 20% 3032 | -10/Mines | Found a hidden stash of uninstalled traps 3045 | -10/Mines | Discovered new exit (range 16) 3196 | -10/Mines | Entered Materials 3196 | -9/Materials | Evolved 2 slots: Propulsion x1, Utility x1 3885 | -9/Materials | Build established: Scavenger-Mutant 4011 | -9/Materials | Discovered new exit (range 10) 4208 | -9/Materials | Discovered new exit (range 8) 4249 | -9/Materials | Identified exit to Mines 4249 | -9/Materials | Identified exit to Storage 4627 | -9/Materials | Learned location of 1 exit from Recycling 4655 | -9/Materials | Discovered new exit (range 4) 4701 | -9/Materials | Learned 4 Recycling zone layouts 4737 | -9/Materials | Build established: Mutant 4764 | -9/Materials | Identified exit to Materials 4764 | -9/Materials | Learned location of 2 exits from Materials 4897 | -9/Materials | Learned 2 Storage zone layouts 4942 | -9/Materials | Learned location of 1 exit from Recycling 4996 | -9/Materials | Learned Storage garrison access intel 5260 | -9/Materials | Build established: Scavenger-Mutant 5267 | -9/Materials | Entered Storage 5268 | -9/Storage | Identified exit to Recycling 5269 | -9/Storage | Loaded intel: 1 garrison access location 5972 | -9/Storage | Assisted by bots powering up and referring to "LRC-V3" 6070 | -9/Storage | Learned location of Armory (-4) 6250 | -9/Storage | Build established: Commander-Mutant 6287 | -9/Storage | Discovered exit to Materials (range 9) 6467 | -9/Storage | First assault squad dispatched 6481 | -9/Storage | Core integrity fell below 50% 6588 | -9/Storage | Learned location of Recycling (-9) 6652 | -9/Storage | Loaded intel: 9 trap records 6704 | -9/Storage | Learned location of Zion (-6) 6720 | -9/Storage | Entered Materials 6720 | -8/Materials | Accompanied by 8 allies 6720 | -8/Materials | Evolved 2 slots: Propulsion x1, Utility x1 6721 | -8/Materials | Identified exit to Factory 6778 | -8/Materials | Identified exit to Garrison 6798 | -8/Materials | Entered Garrison 6798 | -8/Garrison | Accompanied by 8 allies 7030 | -8/Garrison | Triggered checkpoint 7072 | -8/Garrison | Lost 4 allies 7261 | -8/Garrison | Build established: Scavenger-Mutant 7312 | -8/Garrison | Garrison Relay disabled 7405 | -8/Garrison | Triggered checkpoint 7453 | -8/Garrison | Lost 3 parts (2n1u) 7574 | -8/Garrison | Triggered checkpoint 7640 | -8/Garrison | Discovered new exit (range 3) 7677 | -8/Garrison | Installed Relay Interface Framework 7698 | -8/Garrison | Build established: Mutant 7862 | -8/Garrison | Garrison Relay disabled 7959 | -8/Garrison | Triggered checkpoint 8052 | -8/Garrison | Triggered checkpoint 8110 | -8/Garrison | Lost 3 parts (1p2u) 8153 | -8/Garrison | Garrison Relay disabled 8223 | -8/Garrison | Discovered new exit (range 14) 8250 | -8/Garrison | Entered Materials 8315 | -8/Materials | Central database locked down 8427 | -8/Materials | Core integrity fell below 50% 8443 | -8/Materials | Lost 4 parts (1p2n1w) 8942 | -8/Materials | Discovered exit to Factory (range 15) 9190 | -8/Materials | Discovered exit to Factory (range 4) 9270 | -8/Materials | Identified exit to Garrison 9270 | -8/Materials | Entered Garrison 9373 | -8/Garrison | Triggered checkpoint 9383 | -8/Garrison | Core integrity fell below 20% 9407 | -8/Garrison | Build established: Scavenger-Mutant 9427 | -8/Garrison | Garrison Relay disabled 9656 | -8/Garrison | Triggered checkpoint 9672 | -8/Garrison | Triggered checkpoint 9759 | -8/Garrison | Destroyed by H-55 Commando with Assault Rifle Last Messages --------------- 09698_ Target Analyzer melted. 09698_ Imp. Heat Sink melted. 09703_ Imp. Heat Sink destroyed. 09704_ System corrupted: FCS attempts to trigger Adv. Beam Cannon. 09704_ System corrupted: Adv. Beam Cannon misfires. 09707_ Destroyed Mic. Nuclear Core. 09713_ P-60 Hacker destroyed. 09719_ FD-DBR(b) destroyed. 09730_ System corrupted: FCS attempts to trigger Adv. Beam Cannon. 09730_ System corrupted: Adv. Beam Cannon misfires. 09739_ Destroyed Flight Unit. 09739_ S-10 Pest destroyed. 09748_ S43T#6 YWR&QGXL33Q9JPY RYDCSNH2C5KKDIR 09753_ Lgt. Treads+ destroyed. 09756_ Slug penetrates Wall. 09759_ Penetrated by Slug. Map ----- +----------------------------------------------------+ | ?????????????????????????????????????????????????? | | ?????????????????????????#######?????????????????? | | ?????????????????????????#=%%[ #?????????????????? | | ?????????????????????????# #??????######?????? | | ?????????????????????????# #??????# #?????? | | ?????????????????????????## ###??????# #?????? | | ?????????????????????????#T #????????# #?????? | | ?????????????????????????### #????????# ###?????? | | ???????????????????????????# #????????# #???????? | | ???????????????????????????# #????????# #???????? | | ???????????????????????????# #????????# #???????? | | ???????????????????????????# #????????# #???????? | | ???????????????????????????# #????????# #???????? | | ???????????????????????????# #????????# #???????? | | ???????????????????????##### ########## #???????? | | ???????????????????????# #???????? | | ???????????????????????# #???????? | | ???????????????????????# ########### ####???????? | | ???????????????????????# #?????????# #??????????? | | ???????????????????????# #?????????# #??????????? | | ???????????????????????# #?????????# #??????????? | | ???????????????????????# #?????????# #?#####????? | | ???????????????????????# #?????????#[#?# = #????? | | ???????????????????????# #?????????#!###=% ###### | | ?????????????????# % ## ##????????#!%=%= | | ????????????# =%!@ #????????#!############ | | ?????????? ; ^ = % #???????##=#?????????#" | | ????????????# *%=%/ #???????# =#?????????## | | ????????????# ## # #???????#T #??????????? | | ????????????# ???# % # h#???????#""#??????????? | | ???????????????? ? ???????####??????????? | | ?????????????? ?????????????????????? | | ????????????? ? ????????????????????? | | ????????????? | % ????????????????????? | | ????????????? ## #=%[ ##????????????????????? | | ?????????????? ???? ##!% #?????????????????????? | | ?????????????????? ? ! ?????????????????????? | | ?????????????????? ?? ?????????????????????? | | ?????????????????? ?? #?????????????????????? | | ???????????????????????# #??????????????????????? | | ???????????????????????? ???????????????????????? | | ?????????????????????????????????????????????????? | | ?????????????????????????????????????????????????? | | ?????????????????????????????????????????????????? | | ?????????????????????????????????????????????????? | | ?????????????????????????????????????????????????? | | ?????????????????????????????????????????????????? | | ?????????????????????????????????????????????????? | | ?????????????????????????????????????????????????? | | ?????????????????????????????????????????????????? | +----------------------------------------------------+ Best States ------------- Heat Dissipation 56 Energy Generation 16 Energy Capacity 290 Matter Stores 300 Matter Capacity 300 Sight Range 16 Terrain Scan Density 10 Armor Coverage 300 Evasion (%) 40 Recoil Reduction 4 Offensive Hacking 10 Relay Coupler Types 3 Relay Coupler Value 58 Item Schematics ----------------- Med. Armor Plating | -9/Storage | Hacked Robot Schematics ------------------ None Fabricated ------------ Nothing Repaired ---------- Nothing Studied --------- Lgt. Treads | -9/Materials | Hacked Carbon-fiber Leg | -8/Materials | Hacked Mni. Grenade Launcher | -8/Materials | Hacked Rocket Launcher | -8/Materials | Hacked Alien Tech Used ----------------- None Achievements -------------- None Challenges ------------ None Game ------ Seed BottomlessActiveTrident Manual? 0 Play Time 00:38:44 Cumulative 225.9 hours Start 2025.12.18 @ 16:24:11 End 2025.12.18 @ 17:08:23 Sessions 3 Manual Loads 0 Difficulty Rogue Special Mode None Game No. 212 Rogue 212 Adventurer 0 Explorer 0 Win Type - Total 10 Types 7/0/2/0/0/0/0/0/0/1 Lore% 85 Gallery% 75 Achievement% 59 Wizard Run 0 Options --------- Layout 1 ASCII 0 Keyboard 1 Movement Arrows Keybinds 0 Fullscreen 1 Font 24/Smallcaps Map View 50x40 Zoom Use 0% Tactical HUD 1 Map Filters NONE Filters NONE Steam 1 RUN: 7e813096-c5a5-46d8-ba8e-db03b8c8f26e